[Event "Djerba Festival Open-B 2025"]
[Site "Djerba"]
[Date "2025.02.18"]
[Round "3.12"]
[White "Minde, Baptiste"]
[Black "Mendili, Jahed"]
[Result "1/2-1/2"]
[Annotator "NA"]
[ECO "D02"]
[WhiteElo "1896"]
[BlackElo "1771"]
[PlyCount "58"]
[EventDate "2025.02.15"]
[EventType "swiss"]
[EventCountry "TUN"]
[SourceTitle "playchess.com"]
[Source "ChessBase"]
[SourceQuality "1"]
[TimeControl "5400+30"]

1. d4 {[%emt 0:00:01]} Nf6 {[%emt 0:04:11]} 2. Bf4 {[%emt 0:00:27]} e6 {[%emt 0:02:44]} 3. e3 {[%emt 0:00:11]} d5 {[%emt 0:04:01]} 4. Nf3 {[%emt 0:00:13]} Nbd7 {[%emt 0:00:24]} 5. Nbd2 {[%emt 0:00:22]} c5 {[%emt 0:01:59]} 6. c3 {[%emt 0:00:50]} Be7 {[%emt 0:02:36]} 7. h3 {[%emt 0:01:00]} O-O {[%emt 0:01:56]} 8. Bd3 {[%emt 0:00:57]} b6 {[%emt 0:06:23]} 9. Ne5 {[%emt 0:01:45]} Bb7 {[%emt 0:07:03]} 10. Qf3 {[%emt 0:01:01]} Nxe5 {[%emt 0:11:16]} 11. dxe5 {[%emt 0:04:02]} d4 {[%emt 0:20:34]} 12. Qxb7 {[%emt 0:01:31]} dxc3 {[%emt 0:00:10]} 13. exf6 {[%emt 0:16:59]} Qxd3 {[%emt 0:00:19]} 14. fxe7 {[%emt 0:11:55]} Qxd2+ {[%emt 0:00:25]} 15. Kf1 {[%emt 0:00:12]} cxb2 {[%emt 0:00:44]} 16. exf8=Q+ {[%emt 0:57:04]} Rxf8 {[%emt 0:00:18]} 17. Re1 {[%emt 0:00:00]} Qxe1+ {[%emt 0:00:10]} 18. Kxe1 {[%emt 0:00:00]} b1=Q+ {[%emt 0:00:09]} 19. Ke2 {[%emt 0:00:00]} Qxh1 {[%emt 0:00:09]} 20. Bd6 {[%emt 0:00:00]} Qb1 {[%emt 0:01:32]} 21. Bxf8 {[%emt 0:00:00]} Qxa2+ {[%emt 0:00:14]} 22. Kf3 {[%emt 0:00:00]} Kxf8 {[%emt 0:00:09]} 23. Qc8+ {[%emt 0:00:00]} Ke7 {[%emt 0:00:07]} 24. Qc7+ {[%emt 0:00:00]} Kf6 {[%emt 0:00:09]} 25. Qf4+ {[%emt 0:00:00]} Kg6 {[%emt 0:00:36]} 26. Qg4+ {[%emt 0:00:00]} Kh6 {[%emt 0:00:08]} 27. Qf4+ {[%emt 0:00:00]} Kg6 {[%emt 0:00:54]} 28. Qg4+ {[%emt 0:00:00]} Kf6 {[%emt 0:00:23]} 29. Qf4+ {[%emt 0:00:00]} Kg6 {[%emt 0:00:41]} 1/2-1/2

[Event "Djerba Festival Open-B 2025"]
[Site "Djerba"]
[Date "2025.02.18"]
[Round "3.13"]
[White "Schmittheisler, Guillaume"]
[Black "Cherad, Mohammed"]
[Result "1/2-1/2"]
[Annotator "NA"]
[ECO "E11"]
[WhiteElo "1888"]
[BlackElo "1768"]
[PlyCount "45"]
[EventDate "2025.02.15"]
[EventType "swiss"]
[EventCountry "TUN"]
[SourceTitle "playchess.com"]
[Source "ChessBase"]
[SourceQuality "1"]
[TimeControl "5400+30"]

1. d4 {[%emt 0:00:18]} Nf6 {[%emt 0:00:19]} 2. Nf3 {[%emt 0:00:18]} d5 {[%emt 0:00:23]} 3. c4 {[%emt 0:00:37]} e6 {[%emt 0:00:11]} 4. g3 {[%emt 0:00:24]} Bb4+ {[%emt 0:00:53]} 5. Bd2 {[%emt 0:00:12]} Be7 {[%emt 0:01:00]} 6. Bg2 {[%emt 0:02:26]} O-O {[%emt 0:01:51]} 7. O-O {[%emt 0:00:25]} Ne4 {[%emt 0:01:30]} 8. Nc3 {[%emt 0:02:21]} c6 {[%emt 0:02:42]} 9. b3 {[%emt 0:08:35]} Nd7 {[%emt 0:01:46]} 10. Nxe4 {[%emt 0:06:28]} dxe4 {[%emt 0:00:14]} 11. Ne5 {[%emt 0:00:29]} Nxe5 {[%emt 0:05:39]} 12. dxe5 {[%emt 0:01:23]} Qc7 {[%emt 0:02:18]} 13. Qc2 {[%emt 0:02:51]} Qxe5 {[%emt 0:02:52]} 14. Bc3 {[%emt 0:00:50]} Qc7 {[%emt 0:01:26]} 15. Qxe4 {[%emt 0:02:38]} f5 {[%emt 0:00:21]} 16. Qc2 {[%emt 0:03:59]} e5 {[%emt 0:01:29]} 17. Rad1 {[%emt 0:03:47]} Be6 {[%emt 0:01:02]} 18. Rd2 {[%emt 0:05:34]} Rad8 {[%emt 0:02:58]} 19. Rxd8 {[%emt 0:06:47]} Rxd8 {[%emt 0:01:22]} 20. Rd1 {[%emt 0:00:20]} Bf6 {[%emt 1:10:14]} 21. Rxd8+ {[%emt 0:50:18]} Qxd8 {[%emt 0:00:30]} 22. Bh3 {[%emt 0:00:30]} Qd7 {[%emt 0:00:30]} 23. e4 {[%emt 0:00:30]} 1/2-1/2

[Event "Djerba Festival Open-B 2025"]
[Site "Djerba"]
[Date "2025.02.18"]
[Round "3.14"]
[White "Ktita, Dhafer"]
[Black "Chelli, Hichem"]
[Result "1-0"]
[Annotator "ChessBase"]
[ECO "C10"]
[WhiteElo "1949"]
[BlackElo "1763"]
[PlyCount "114"]
[EventDate "2025.02.15"]
[EventType "swiss"]
[EventCountry "TUN"]
[SourceTitle "playchess.com"]
[Source "ChessBase"]
[SourceQuality "1"]
[TimeControl "5400+30"]

1. e4 {[%emt 0:00:03]} e6 2. d4 d5 {[%emt 0:04:14]} 3. Nd2 {[%emt 0:00:26]} dxe4 {[%emt 0:00:06]} 4. Nxe4 {[%emt 0:00:10]} Nd7 {[%emt 0:00:08]} 5. Nf3 {[%emt 0:00:13]} Ngf6 {[%emt 0:00:06]} 6. Nxf6+ {[%emt 0:00:15]} Nxf6 {[%emt 0:00:07]} 7. Be3 {[%emt 0:02:31]} Be7 {[%emt 0:02:30]} 8. Bd3 {[%emt 0:00:24]} b6 {[%emt 0:06:30]} 9. Qe2 {[%emt 0:04:49]} Bb7 {[%emt 0:03:45]} 10. O-O-O {[%emt 0:01:20]} O-O {[%emt 0:05:18]} 11. Bg5 {[%emt 0:04:07]} Bxf3 {[%emt 0:19:31]} 12. Qxf3 {[%emt 0:00:42]} Qd5 {[%emt 0:00:14]} 13. Qxd5 {[%emt 0:01:00]} Nxd5 {[%emt 0:00:16]} 14. Bxe7 {[%emt 0:00:11]} Nxe7 {[%emt 0:00:02]} 15. Be4 {[%emt 0:02:25]} Rad8 {[%emt 0:00:32]} 16. c4 {[%emt 0:04:25]} a5 {[%emt 0:07:29]} 17. Kc2 {[%emt 0:04:03]} Nc8 {[%emt 0:00:00]} 18. Kc1 {[%emt 0:00:00]} Ne7 {[%emt 0:01:00]} 19. Kc2 {[%emt 0:01:00]} Nc8 {[%emt 0:03:22]} 20. Kc3 {[%emt 0:02:44]} Nd6 {[%emt 0:08:24]} 21. Bc2 {[%emt 0:04:26]} b5 {[%emt 0:02:46]} 22. b3 {[%emt 0:00:00]} Nc8 {[%emt 0:00:00]} 23. Be4 {[%emt 0:00:00]} Nd6 {[%emt 0:00:00]} 24. Bc2 {[%emt 0:01:30]} Rb8 {[%emt 0:06:03]} 25. a3 {[%emt 0:08:43]} a4 {[%emt 0:06:05]} 26. c5 {[%emt 0:02:54]} axb3 {[%emt 0:03:13]} 27. Kxb3 {[%emt 0:01:09]} Ne8 {[%emt 0:05:07]} 28. Be4 {[%emt 0:00:40]} Nf6 {[%emt 0:00:39]} 29. Bc6 {[%emt 0:01:41]} Rfd8 {[%emt 0:00:14]} 30. Rhe1 {[%emt 0:01:14]} Nd5 {[%emt 0:03:09]} 31. Re5 {[%emt 0:06:25]} Ne7 {[%emt 0:02:38]} 32. Be4 {[%emt 0:01:00]} c6 {[%emt 0:00:37]} 33. Rh5 {[%emt 0:05:31]} g6 {[%emt 0:01:39]} 34. Rh3 {[%emt 0:02:13]} Rd7 {[%emt 0:01:19]} 35. Rhd3 {[%emt 0:00:35]} Ra7 {[%emt 0:01:00]} 36. Ka2 {[%emt 0:04:06]} Rba8 {[%emt 0:01:18]} 37. Rb3 {[%emt 0:02:09]} Ra4 {[%emt 0:00:34]} 38. Kb2 {[%emt 0:00:24]} Rd8 {[%emt 0:02:30]} 39. Rb4 {[%emt 0:00:18]} Ra7 {[%emt 0:00:41]} 40. f4 {[%emt 0:02:00]} Rda8 {[%emt 0:01:44]} 41. Rd3 {[%emt 0:00:38]} Kf8 {[%emt 0:01:33]} 42. g3 {[%emt 0:00:59]} Rd8 {[%emt 0:02:03]} 43. h4 {[%emt 0:02:06]} h5 {[%emt 0:00:25]} 44. a4 {[%emt 0:02:04]} Rxa4 {[%emt 0:01:30]} 45. Rxa4 {[%emt 0:00:08]} bxa4 {[%emt 0:00:02]} 46. Ka3 {[%emt 0:00:55]} Ra8 {[%emt 0:00:24]} 47. Rd2 {[%emt 0:00:16]} Ke8 {[%emt 0:01:49]} 48. Rb2 {[%emt 0:00:11]} Ra7 {[%emt 0:00:50]} 49. Rb8+ {[%emt 0:00:57]} Kd7 {[%emt 0:00:36]} 50. Rf8 {[%emt 0:00:09]} f5 {[%emt 0:00:19]} 51. Bc2 {[%emt 0:01:13]} Rb7 {[%emt 0:01:06]} 52. Bxa4 {[%emt 0:00:40]} Rb1 {[%emt 0:00:29]} 53. Ra8 {[%emt 0:00:21]} Nd5 {[%emt 0:00:32]} 54. Ra7+ {[%emt 0:00:39]} Kd8 {[%emt 0:00:28]} 55. Ra8+ {[%emt 0:00:58]} Kc7 {[%emt 0:00:18]} 56. Ra6 {[%emt 0:01:38]} Nb4 {[%emt 0:00:44]} 57. Rb6 {[%emt 0:00:16]} Ra1+ {[%emt 0:01:02]} 1-0

[Event "Djerba Festival Open-B 2025"]
[Site "Djerba"]
[Date "2025.02.18"]
[Round "3.15"]
[White "Baba, Mouadh"]
[Black "Abokrais, Kaled"]
[Result "1-0"]
[Annotator "NA"]
[ECO "B32"]
[WhiteElo "1688"]
[BlackElo "1902"]
[PlyCount "55"]
[EventDate "2025.02.15"]
[EventType "swiss"]
[EventCountry "TUN"]
[SourceTitle "playchess.com"]
[Source "ChessBase"]
[SourceQuality "1"]
[TimeControl "5400+30"]

1. e4 c5 2. Nf3 Nc6 3. d4 cxd4 4. Nxd4 e5 5. Nb5 d6 6. N1c3 a6 7. Na3 b5 8. Nd5 h6 9. c3 Nf6 10. f3 Nxd5 11. exd5 {[%emt 1:36:00]} Ne7 {[%emt 1:36:00]} 12. Nc2 {[%emt 0:00:30]} Bb7 {[%emt 0:00:30]} 13. c4 {[%emt 0:00:30]} bxc4 {[%emt 0:00:30]} 14. Bxc4 {[%emt 0:00:30]} Nf5 {[%emt 0:00:30]} 15. Qd3 {[%emt 0:00:30]} Qh4+ {[%emt 0:00:30]} 16. Kd1 {[%emt 0:00:30]} Ng3 {[%emt 0:00:30]} 17. Re1 {[%emt 0:00:30]} Qxh2 {[%emt 0:00:30]} 18. Bb5+ {[%emt 0:00:30]} Kd8 {[%emt 0:00:30]} 19. Ba4 {[%emt 0:00:30]} Qxg2 {[%emt 0:00:30]} 20. Bd2 {[%emt 0:00:30]} h5 {[%emt 0:00:30]} 21. Qc3 {[%emt 0:00:30]} Bxd5 {[%emt 0:00:30]} 22. Qa5+ {[%emt 0:00:30]} Ke7 {[%emt 0:00:30]} 23. Qxd5 {[%emt 0:00:30]} Ra7 {[%emt 0:00:30]} 24. Bb4 {[%emt 0:00:30]} Nf5 {[%emt 0:00:30]} 25. Rxe5+ {[%emt 0:00:30]} Kf6 {[%emt 0:00:30]} 26. Rxf5+ {[%emt 0:00:30]} Kg6 {[%emt 0:00:30]} 27. Bd2 {[%emt 0:00:30]} Be7 {[%emt 0:00:30]} 28. Qxf7+ {[%emt 0:00:30]} 1-0

[Event "Djerba Festival Open-B 2025"]
[Site "Djerba"]
[Date "2025.02.18"]
[Round "3.16"]
[White "Le Dore, Yann"]
[Black "Mallah, Abderrahmane"]
[Result "1/2-1/2"]
[Annotator "NA"]
[ECO "B13"]
[WhiteElo "1846"]
[BlackElo "1556"]
[PlyCount "78"]
[EventDate "2025.02.15"]
[EventType "swiss"]
[EventCountry "TUN"]
[SourceTitle "playchess.com"]
[Source "ChessBase"]
[SourceQuality "1"]
[TimeControl "5400+30"]

1. e4 {[%emt 0:00:05]} c6 {[%emt 0:00:06]} 2. d4 {[%emt 0:01:26]} d5 {[%emt 0:00:06]} 3. exd5 {[%emt 0:00:06]} cxd5 {[%emt 0:00:09]} 4. Bd3 {[%emt 0:00:05]} Nf6 {[%emt 0:00:13]} 5. h3 {[%emt 0:00:17]} Nc6 {[%emt 0:00:06]} 6. c3 {[%emt 0:00:06]} g6 {[%emt 0:00:08]} 7. Nf3 {[%emt 0:00:39]} Bf5 {[%emt 0:00:08]} 8. O-O {[%emt 0:00:21]} Bxd3 {[%emt 0:00:05]} 9. Qxd3 {[%emt 0:00:11]} Bg7 {[%emt 0:00:06]} 10. Bf4 {[%emt 0:02:26]} O-O {[%emt 0:00:10]} 11. Nbd2 {[%emt 0:00:52]} Re8 {[%emt 0:02:14]} 12. Rfe1 {[%emt 0:00:29]} e6 {[%emt 0:01:21]} 13. Ne5 {[%emt 0:02:16]} Rc8 {[%emt 0:03:55]} 14. a4 {[%emt 0:08:48]} Nd7 {[%emt 0:09:45]} 15. Ndf3 {[%emt 0:04:28]} Ncxe5 {[%emt 0:02:48]} 16. Nxe5 {[%emt 0:00:16]} Nxe5 {[%emt 0:00:31]} 17. Bxe5 {[%emt 0:00:41]} Bxe5 {[%emt 0:01:12]} 18. dxe5 {[%emt 0:00:26]} Qb6 {[%emt 0:10:01]} 19. Re2 {[%emt 0:01:27]} Red8 {[%emt 0:04:31]} 20. a5 {[%emt 0:06:38]} Qc5 {[%emt 0:01:49]} 21. Ra4 {[%emt 0:02:01]} b5 {[%emt 0:10:34]} 22. axb6 {[%emt 0:06:56]} axb6 {[%emt 0:00:29]} 23. Rh4 {[%emt 0:07:07]} Qe7 {[%emt 0:11:16]} 24. Rb4 {[%emt 0:54:23]} Qc5 {[%emt 0:06:18]} 25. g3 {[%emt 0:00:00]} Rb8 {[%emt 0:05:01]} 26. Kg2 {[%emt 0:00:00]} Qc6 {[%emt 0:01:44]} 27. Kg1 {[%emt 0:00:00]} Ra8 {[%emt 0:01:37]} 28. Re1 {[%emt 0:00:00]} Ra2 {[%emt 0:06:04]} 29. Qd4 {[%emt 0:00:00]} b5 {[%emt 0:02:48]} 30. Qd3 {[%emt 0:00:00]} Rb8 {[%emt 0:01:16]} 31. Rd1 {[%emt 0:00:00]} Ra4 {[%emt 0:05:33]} 32. Qd4 {[%emt 0:00:00]} Rxb4 {[%emt 0:01:00]} 33. Qxb4 {[%emt 0:00:00]} Qc4 {[%emt 0:03:07]} 34. Rd4 {[%emt 0:00:00]} Qxb4 {[%emt 0:00:18]} 35. Rxb4 {[%emt 0:00:00]} Kf8 {[%emt 0:00:36]} 36. f4 {[%emt 0:00:00]} h5 {[%emt 0:00:55]} 37. Kf2 {[%emt 0:00:00]} Ke7 {[%emt 0:00:51]} 38. Ke3 {[%emt 0:00:00]} Kd7 {[%emt 0:00:17]} 39. Kd4 {[%emt 0:00:00]} Kc6 {[%emt 0:00:13]} 1/2-1/2

[Event "Djerba Festival Open-B 2025"]
[Site "Djerba"]
[Date "2025.02.18"]
[Round "3.17"]
[White "Azreug, Lazhar"]
[Black "Chatard, Patrice"]
[Result "1-0"]
[Annotator "NA"]
[ECO "B13"]
[WhiteElo "1793"]
[BlackElo "1626"]
[PlyCount "109"]
[EventDate "2025.02.15"]
[EventType "swiss"]
[EventCountry "TUN"]
[SourceTitle "playchess.com"]
[Source "ChessBase"]
[SourceQuality "1"]
[TimeControl "5400+30"]

1. e4 {[%emt 0:06:01]} c6 {[%emt 0:00:39]} 2. d4 {[%emt 0:00:07]} d5 {[%emt 0:00:17]} 3. exd5 {[%emt 0:00:04]} cxd5 {[%emt 0:00:23]} 4. Bd3 {[%emt 0:00:12]} Nc6 {[%emt 0:00:23]} 5. c3 {[%emt 0:00:05]} e5 {[%emt 0:00:31]} 6. dxe5 {[%emt 0:00:30]} Nxe5 {[%emt 0:00:13]} 7. Bb5+ {[%emt 0:00:38]} Nc6 {[%emt 0:00:09]} 8. Nf3 {[%emt 0:03:18]} Nf6 {[%emt 0:00:08]} 9. O-O {[%emt 0:01:44]} Be7 {[%emt 0:00:07]} 10. Ne5 {[%emt 0:04:43]} Qc7 {[%emt 0:00:08]} 11. Re1 {[%emt 0:01:12]} O-O {[%emt 0:00:16]} 12. Nxc6 {[%emt 0:02:13]} bxc6 {[%emt 0:01:38]} 13. Bxc6 {[%emt 0:01:00]} Qxc6 {[%emt 0:00:52]} 14. Rxe7 {[%emt 0:00:13]} Be6 {[%emt 0:00:33]} 15. Qd4 {[%emt 0:11:56]} Qb6 {[%emt 0:16:21]} 16. Qxb6 {[%emt 0:04:10]} axb6 {[%emt 0:00:07]} 17. Rb7 {[%emt 0:00:38]} Rfb8 {[%emt 0:04:14]} 18. Rxb8+ {[%emt 0:02:56]} Rxb8 {[%emt 0:00:11]} 19. Nd2 {[%emt 0:02:05]} Re8 {[%emt 0:04:11]} 20. f3 {[%emt 0:05:32]} Bd7 {[%emt 0:00:46]} 21. Nb3 {[%emt 0:05:48]} h6 {[%emt 0:00:48]} 22. Kf2 {[%emt 0:01:13]} g5 {[%emt 0:03:05]} 23. Be3 {[%emt 0:02:58]} b5 {[%emt 0:00:53]} 24. Rd1 {[%emt 0:01:42]} Kg7 {[%emt 0:00:55]} 25. Nc5 {[%emt 0:04:04]} Bc8 {[%emt 0:02:56]} 26. Bd4 {[%emt 0:00:36]} Kg6 {[%emt 0:00:11]} 27. Bxf6 {[%emt 0:00:48]} Kxf6 {[%emt 0:00:10]} 28. Rxd5 {[%emt 0:00:04]} Kg7 {[%emt 0:07:22]} 29. Ne4 {[%emt 0:01:23]} Be6 {[%emt 0:07:11]} 30. Rxb5 {[%emt 0:01:26]} Bxa2 {[%emt 0:00:29]} 31. Nd6 {[%emt 0:04:56]} Re6 {[%emt 0:01:41]} 32. Nf5+ {[%emt 0:00:20]} Kg6 {[%emt 0:01:15]} 33. Nd4 {[%emt 0:00:07]} Ra6 {[%emt 0:09:27]} 34. b4 {[%emt 0:06:03]} Bc4 {[%emt 0:01:09]} 35. Ra5 {[%emt 0:00:41]} Rb6 {[%emt 0:00:10]} 36. Rc5 {[%emt 0:00:22]} Bd3 {[%emt 0:03:06]} 37. Ke3 {[%emt 0:00:30]} Bf1 {[%emt 0:00:02]} 38. Kf2 {[%emt 0:00:45]} Bd3 {[%emt 0:00:05]} 39. Rc6+ {[%emt 0:00:16]} Rxc6 {[%emt 0:00:23]} 40. Nxc6 {[%emt 0:00:00]} f6 {[%emt 0:01:16]} 41. Ke3 {[%emt 0:00:24]} Bf1 {[%emt 0:00:39]} 42. g3 {[%emt 0:00:14]} Kf7 {[%emt 0:01:16]} 43. Ke4 {[%emt 0:01:42]} g4 {[%emt 0:01:07]} 44. Nd4 {[%emt 0:00:50]} gxf3 {[%emt 0:01:06]} 45. Kxf3 {[%emt 0:00:09]} Bc4 {[%emt 0:00:53]} 46. Kf4 {[%emt 0:00:40]} h5 {[%emt 0:01:37]} 47. Nf5 {[%emt 0:00:29]} Kf8 {[%emt 0:03:38]} 48. h4 {[%emt 0:00:55]} Bd3 {[%emt 0:02:40]} 49. Ne3 {[%emt 0:00:44]} Ke7 {[%emt 0:00:38]} 50. Nd5+ {[%emt 0:00:43]} Ke6 {[%emt 0:01:02]} 51. Ke3 {[%emt 0:00:11]} Bc4 {[%emt 0:26:43]} 52. Nf4+ {[%emt 0:00:06]} Kf5 {[%emt 0:00:00]} 53. Nxh5 {[%emt 0:02:51]} Kg4 {[%emt 0:00:00]} 54. Nxf6+ {[%emt 0:00:13]} Kxg3 {[%emt 0:00:00]} 55. h5 {[%emt 0:00:08]} 1-0

[Event "Djerba Festival Open-B 2025"]
[Site "Djerba"]
[Date "2025.02.18"]
[Round "3.18"]
[White "Chaouech, Oussama"]
[Black "Ben Youssef, Chedly"]
[Result "1-0"]
[Annotator "NA"]
[ECO "D07"]
[WhiteElo "1651"]
[BlackElo "1787"]
[PlyCount "146"]
[EventDate "2025.02.15"]
[EventType "swiss"]
[EventCountry "TUN"]
[SourceTitle "playchess.com"]
[Source "ChessBase"]
[SourceQuality "1"]
[TimeControl "5400+30"]

1. d4 {[%emt 0:00:03]} d5 {[%emt 0:02:37]} 2. c4 {[%emt 0:00:08]} Nf6 {[%emt 0:00:21]} 3. Nc3 {[%emt 0:00:34]} Bf5 {[%emt 0:00:42]} 4. e3 {[%emt 0:00:37]} e6 {[%emt 0:00:19]} 5. Nf3 {[%emt 0:01:15]} Nc6 {[%emt 0:00:23]} 6. Be2 {[%emt 0:01:08]} Be7 {[%emt 0:00:34]} 7. a3 {[%emt 0:02:02]} O-O {[%emt 0:00:39]} 8. O-O {[%emt 0:00:44]} a6 {[%emt 0:01:56]} 9. cxd5 {[%emt 0:02:41]} exd5 {[%emt 0:00:14]} 10. b4 {[%emt 0:03:03]} b5 {[%emt 0:02:58]} 11. Bb2 {[%emt 0:02:45]} Bd6 {[%emt 0:00:23]} 12. Rc1 {[%emt 0:02:06]} Ne7 {[%emt 0:00:31]} 13. Ne5 {[%emt 0:03:09]} Rc8 {[%emt 0:04:30]} 14. Bd3 {[%emt 0:06:07]} Bxd3 {[%emt 0:02:19]} 15. Qxd3 {[%emt 0:01:58]} Nd7 {[%emt 0:03:16]} 16. Ne2 {[%emt 0:02:19]} c6 {[%emt 0:04:14]} 17. Ng3 {[%emt 0:02:12]} f6 {[%emt 0:01:35]} 18. Nf3 {[%emt 0:02:00]} Nb6 {[%emt 0:00:44]} 19. Rc2 {[%emt 0:03:44]} Qd7 {[%emt 0:00:45]} 20. Re1 {[%emt 0:04:07]} Nc4 {[%emt 0:05:37]} 21. Bc1 {[%emt 0:00:36]} f5 {[%emt 0:03:28]} 22. Nh5 {[%emt 0:02:15]} Ng6 {[%emt 0:01:12]} 23. Nf4 {[%emt 0:01:13]} Rfe8 {[%emt 0:03:31]} 24. Nxg6 {[%emt 0:05:59]} hxg6 {[%emt 0:00:23]} 25. Ng5 {[%emt 0:01:37]} Be7 {[%emt 0:01:41]} 26. Nf3 {[%emt 0:06:29]} Bf6 {[%emt 0:00:21]} 27. g3 {[%emt 0:03:26]} Kf7 {[%emt 0:01:14]} 28. Kg2 {[%emt 0:00:36]} Rh8 {[%emt 0:00:53]} 29. Rh1 {[%emt 0:03:26]} Rh5 {[%emt 0:02:32]} 30. Ng1 {[%emt 0:01:44]} Rch8 {[%emt 0:00:40]} 31. f3 {[%emt 0:02:18]} Qe6 {[%emt 0:01:38]} 32. Re2 {[%emt 0:01:00]} Re8 {[%emt 0:01:13]} 33. Nh3 {[%emt 0:02:15]} g5 {[%emt 0:00:44]} 34. Nf2 {[%emt 0:01:24]} Nd6 {[%emt 0:02:21]} 35. Rhe1 {[%emt 0:03:00]} Reh8 {[%emt 0:04:14]} 36. Rh1 {[%emt 0:02:42]} g6 {[%emt 0:00:32]} 37. e4 {[%emt 0:08:06]} fxe4 {[%emt 0:00:54]} 38. fxe4 {[%emt 0:00:23]} dxe4 {[%emt 0:00:46]} 39. Nxe4 {[%emt 0:06:05]} Qd5 {[%emt 0:03:48]} 40. Qf3 {[%emt 0:03:35]} Nf5 {[%emt 0:09:09]} 41. Kf1 {[%emt 0:04:46]} Rh3 {[%emt 0:05:10]} 42. Rg1 {[%emt 0:04:01]} Kg7 {[%emt 0:00:39]} 43. Nxg5 {[%emt 0:00:36]} Qxf3+ {[%emt 0:00:14]} 44. Nxf3 {[%emt 0:00:07]} Nxd4 {[%emt 0:00:54]} 45. Nxd4 {[%emt 0:00:14]} Bxd4 {[%emt 0:00:13]} 46. Rgg2 {[%emt 0:00:34]} Rf8+ {[%emt 0:01:29]} 47. Ke1 {[%emt 0:00:12]} Rh5 {[%emt 0:01:22]} 48. Re6 {[%emt 0:00:39]} Rc8 {[%emt 0:02:25]} 49. Bb2 {[%emt 0:00:20]} Kf7 {[%emt 0:01:32]} 50. Rd6 {[%emt 0:00:40]} Bxb2 {[%emt 0:03:56]} 51. Rxb2 {[%emt 0:00:07]} Re5+ {[%emt 0:00:10]} 52. Re2 {[%emt 0:00:15]} Rce8 {[%emt 0:01:36]} 53. Rxe5 {[%emt 0:00:25]} Rxe5+ {[%emt 0:00:01]} 54. Kf2 {[%emt 0:00:22]} Re6 {[%emt 0:00:31]} 55. Rd7+ {[%emt 0:00:50]} Kf6 {[%emt 0:00:28]} 56. Ra7 {[%emt 0:00:17]} Ke5 {[%emt 0:00:26]} 57. Rxa6 {[%emt 0:00:33]} Kd4 {[%emt 0:00:38]} 58. Kf3 {[%emt 0:00:15]} Kd5 {[%emt 0:01:36]} 59. Kf4 {[%emt 0:00:23]} Re2 {[%emt 0:02:23]} 60. h4 {[%emt 0:00:17]} Re6 {[%emt 0:00:16]} 61. Ra7 {[%emt 0:00:25]} Rd6 {[%emt 0:01:58]} 62. Kg5 {[%emt 0:00:14]} Kc4 {[%emt 0:00:22]} 63. g4 {[%emt 0:00:23]} Kb3 {[%emt 0:01:01]} 64. h5 {[%emt 0:00:22]} gxh5 {[%emt 0:00:03]} 65. Kxh5 {[%emt 0:01:25]} c5 {[%emt 0:00:24]} 66. bxc5 {[%emt 0:00:20]} Rd5+ {[%emt 0:17:52]} 67. g5 {[%emt 0:04:07]} Rxc5 {[%emt 0:00:00]} 68. Kh6 {[%emt 0:00:00]} Rc2 {[%emt 0:00:00]} 69. g6 {[%emt 0:00:00]} Rh2+ {[%emt 0:00:00]} 70. Kg5 {[%emt 0:00:00]} Rg2+ {[%emt 0:00:00]} 71. Kf6 {[%emt 0:00:00]} Rf2+ {[%emt 0:00:00]} 72. Ke7 {[%emt 0:00:00]} Re2+ {[%emt 0:00:00]} 73. Kf8 {[%emt 0:00:00]} Re3 {[%emt 0:03:30]} 1-0

[Event "Djerba Festival Open-B 2025"]
[Site "Djerba"]
[Date "2025.02.18"]
[Round "3.19"]
[White "Sazlik, Mucahit"]
[Black "Marceil, Jean"]
[Result "0-1"]
[Annotator "NA"]
[ECO "C02"]
[WhiteElo "1672"]
[BlackElo "1901"]
[PlyCount "50"]
[EventDate "2025.02.15"]
[EventType "swiss"]
[EventCountry "TUN"]
[SourceTitle "playchess.com"]
[Source "ChessBase"]
[SourceQuality "1"]
[TimeControl "5400+30"]

1. e4 {[%emt 0:02:04]} e6 {[%emt 0:00:21]} 2. d4 {[%emt 0:00:22]} d5 {[%emt 0:00:35]} 3. e5 {[%emt 0:00:06]} c5 {[%emt 0:00:20]} 4. c3 {[%emt 0:00:07]} Nc6 {[%emt 0:00:20]} 5. Nf3 {[%emt 0:00:43]} Bd7 {[%emt 0:00:20]} 6. Bd3 {[%emt 0:06:05]} Qb6 {[%emt 0:00:38]} 7. Bc2 {[%emt 0:06:17]} cxd4 {[%emt 0:01:14]} 8. cxd4 {[%emt 0:00:12]} Nb4 {[%emt 0:00:28]} 9. Nc3 {[%emt 0:01:20]} Nxc2+ {[%emt 0:00:17]} 10. Qxc2 {[%emt 0:00:07]} Rc8 {[%emt 0:02:04]} 11. O-O {[%emt 0:00:34]} Ne7 {[%emt 0:05:00]} 12. Rd1 {[%emt 0:01:38]} Nf5 {[%emt 0:03:10]} 13. g4 {[%emt 0:02:27]} Ne7 {[%emt 0:00:53]} 14. Be3 {[%emt 0:01:55]} h5 {[%emt 0:02:22]} 15. g5 {[%emt 0:00:56]} Nf5 {[%emt 0:00:22]} 16. h4 {[%emt 0:00:58]} Bb4 {[%emt 0:01:01]} 17. Rab1 {[%emt 0:05:55]} Qa6 {[%emt 0:05:41]} 18. Bd2 {[%emt 0:10:56]} Bb5 {[%emt 0:03:49]} 19. Re1 {[%emt 0:02:26]} Bd3 {[%emt 0:02:16]} 20. Qb3 {[%emt 0:01:04]} Bxc3 {[%emt 0:01:08]} 21. Bxc3 {[%emt 0:00:39]} Bxb1 {[%emt 0:00:17]} 22. Rxb1 {[%emt 0:00:09]} Qd3 {[%emt 0:03:49]} 23. Nd2 {[%emt 0:02:43]} Nxh4 {[%emt 0:06:33]} 24. Qxb7 {[%emt 0:00:44]} O-O {[%emt 0:00:16]} 25. Rc1 {[%emt 0:00:56]} Qh3 {[%emt 0:00:20]} 0-1